Cogmind - Beta 13 X2 @@@ ROGUE MODE // 2023.12.23 @ 13:25:04 Player: Terminus Result: Destroyed by 57-AWF(R) with Subdweller Laser Performance ------------- Evolutions (0) 0 Regions Visited (3) 600 Robots Destroyed (43) 215 Value Destroyed (853) 853 Prototype IDs (0) 0 Alien Tech Used (0) 0 Bonus (33) 33 TOTAL SCORE: 1701 Bonus ------- Follower Combat Kills 33 Cogmind --------- Core Integrity 0/250 Matter 284/300 Energy 200/200 System Corruption 0% Temperature Cool (6) Movement Rolling (90) Location -10/Subcaves Parts ------- > --- POWER (1) -------- Subdweller Power Source > --- PROPULSION (2) --- Armored Wheel > --- UTILITY (2) ------ Heat Sink Backup Plating I > --- WEAPON (2) ------- Subdweller Machine Gun > --- INVENTORY (5) ---- Subdweller Power Source Makeshift Power Source Subdweller Monowheel Subdweller Monowheel Beamcaster Peak State ------------ > --- POWER ------------ Ion Engine > --- PROPULSION ------- Light Treads Armored Wheel > --- UTILITY ---------- Heat Sink Huge Storage Unit > --- WEAPON ----------- Beam Rifle Autogun > --- INVENTORY -------- Ion Engine Ion Engine Light Treads Armored Wheel Armored Wheel Armored Wheel Heat Sink Heat Sink High-capacity Storage Unit Experimental Sensor Array Backup Plating I Backup Plating I Backup Plating I Hacking Suite Beam Rifle Beam Rifle Beam Rifle Beam Cannon Beam Cannon Assault Rifle Autogun Autogun Autogun EMP Blaster Plasma Cutter [Rating: 14] Favorites ----------- Power Ion Engine Engine Ion Engine Propulsion Light Treads Treads Light Treads Wheel Armored Wheel Utility Heat Sink Device Heat Sink Storage Huge Storage Unit Protection Scrap Shield Weapon Autogun Energy Gun Beam Rifle Energy Cannon Beam Cannon Ballistic Gun Autogun Build | -11 -10 -10 -10 ------- Run | Yrd Mat Min Sub Slots Evolved . | . . . . Power . | . . . . Propulsion . | . . . . Utility . | . . . . Weapon . | . . . . Parts Attached 25 | 6 10 . 9 Power 3 | 1 1 . 1 Engine 3 | 1 1 . 1 Core . | . . . . Reactor . | . . . . Propulsion 6 | 2 2 . 2 Treads 3 | 1 1 . 1 Leg . | . . . . Wheel 3 | 1 1 . 1 Hover . | . . . . Flight . | . . . . Utility 8 | 1 4 . 3 Device 3 | . 2 . 1 Storage 3 | 1 2 . . Processor . | . . . . Hackware . | . . . . Protection 2 | . . . 2 Artifact . | . . . . Weapon 8 | 2 3 . 3 Energy Gun 2 | 1 1 . . Energy Cannon 1 | . . . 1 Ballistic Gun 5 | 1 2 . 2 Ballistic Cannon . | . . . . Launcher . | . . . . Special Weapon . | . . . . Impact Weapon . | . . . . Slashing Weapon . | . . . . Piercing Weapon . | . . . . Special Melee Weapon . | . . . . Unidentified Prototypes . | . . . . Parts Lost 11 | . 3 . 8 Power 1 | . . . 1 Propulsion 4 | . 1 . 3 Utility 2 | . 1 . 1 Weapon 4 | . 1 . 3 Highest Loss Streak 6 | . 2 . 6 To Critical Strikes . | . . . . Average Slot Usage (%) 97 | . 99 100 84 Engine 13 | . 14 14 12 Treads 13 | . 13 14 14 Wheel 13 | . 14 14 13 Device 12 | . 13 14 4 Storage 12 | . 14 14 . Protection 1 | . . . 12 Energy Gun 12 | . 14 14 . Ballistic Gun 14 | . 14 14 16 Naked Turns . | . . . . Heaviest Build 92 | 14 92 92 92 Greatest Support 16 | 16 16 12 12 Greatest Overweight (x) 7 | 3 7 7 7 Average Overweight (x) 4 | . 4 7 1 Largest Inventory Capacity 25 | 8 25 25 25 Average Capacity 20 | 7 21 25 5 Most Carried 25 | 4 24 25 25 Average Carried 17 | 2 15 24 4 Final Capacity 25 | 8 25 25 5 Final Carried 25 | 4 24 25 5 Class Distribution -------------------- 95% | Mutant 4% | Scavenger-Mutant Dominant Class ---------------- Mutant | -10/Materials Mutant | -10/Mines Mutant | -10/Subcaves Resources | -11 -10 -10 -10 ----------- Run | Yrd Mat Min Sub Matter Collected 855 | 169 512 32 142 Remotely . | . . . . Salvage Created 1466 | . 1183 123 160 Parts 86 | . 63 10 13 Haulers Intercepted 2 | . 2 . . Recyclers Shooed 1 | . 1 . . Parts Field Recycled . | . . . . Retrieved Matter . | . . . . Parts Self-Destructed 6 | . . . 6 Prevented . | . . . . Kills | -11 -10 -10 -10 ------- Run | Yrd Mat Min Sub Combat Hostiles Destroyed 29 | . 21 4 4 Guns 28 | . 21 4 3 Cannons 1 | . . . 1 Classes Destroyed 10 | . 8 1 1 Worker 1 | . . 1 . Builder 1 | . 1 . . Hauler 2 | . 2 . . Recycler 5 | . 5 . . Mechanic 1 | . 1 . . Operator 2 | . 2 . . Watcher 2 | . 2 . . Swarmer 12 | . 9 3 . Grunt 14 | . 12 1 1 Subdweller 3 | . . . 3 Best Kill Streak 6 | . 6 3 1 Combat Bots Only 4 | . 4 3 1 Max Kills in Single Turn 1 | . 1 1 1 Gunslinging . | . . . . Exploded . | . . . . Melee . | . . . . Uniques/NPCs Destroyed . | . . . . Combat | -11 -10 -10 -10 -------- Run | Yrd Mat Min Sub Hostile Shots Fired 145 | . 89 10 46 Missed 33 | . 20 5 8 Damage Taken 1820 | . 730 44 1046 Core 250 | . 99 10 141 Absorbed by Shields . | . . . . Core Remaining (%) 100 | 100 . . . Volleys Fired 129 | . 93 8 28 Largest 2 | . 2 2 2 Hottest 83 | . 79 79 83 Shots Fired 244 | . 186 16 42 Gun 232 | . 186 16 30 Cannon 12 | . . . 12 Launcher . | . . . . Special . | . . . . Kinetic 131 | . 93 8 30 Thermal 113 | . 93 8 12 Explosive . | . . . . Electromagnetic . | . . . . Robot Hit Streak 24 | . 21 7 24 Robot Miss Streak 5 | . 5 2 3 Penetration Max . | . . . . Secondary Targets 2 | . 2 . . Max Gunslinging Chain 1 | . 1 . . Shots Hit Robots 171 | . 125 11 35 Core Hits 66 | . 53 5 8 Critical Kills . | . . . . Critical Parts Destroyed . | . . . . Critical Strikes 6 | . 5 1 . Burn 6 | . 5 1 . Melee Attacks . | . . . . Impact . | . . . . Slashing . | . . . . Piercing . | . . . . Sneak Attacks . | . . . . Combat Hostiles . | . . . . Follow-up Attacks . | . . . . Damage Inflicted 2517 | . 1768 181 568 Guns 2377 | . 1768 181 428 Cannons 140 | . . . 140 Explosions . | . . . . Melee . | . . . . Ramming . | . . . . Kinetic 1358 | . 853 77 428 Thermal 1159 | . 915 104 140 Explosive . | . . . . Electromagnetic . | . . . . Impact . | . . . . Slashing . | . . . . Piercing . | . . . . Highest Corruption . | . . . . Average Corruption . | . . . . Corruption Purged . | . . . . Corruption Blocked . | . . . . Overload Shots . | . . . . Overflow Damage . | . . . . Projectiles . | . . . . Explosions . | . . . . Melee . | . . . . Knockbacks . | . . . . Impact . | . . . . Kinetic . | . . . . Secondary . | . . . . Self-Inflicted Damage . | . . . . Shots . | . . . . Rammed . | . . . . Targets Rammed . | . . . . Kicked . | . . . . Crushed . | . . . . Highest Temperature 66 | . 66 36 11 Average Temperature 16 | . 19 15 2 Received Heat Transfer 288 | . 234 12 42 Siege Activations . | . . . . Robots Corrupted . | . . . . Combat Hostiles . | . . . . Parts Fried . | . . . . Impact Corruptions . | . . . . Robots Melted . | . . . . Combat Hostiles . | . . . . Parts Melted 5 | . 4 1 . Heat Transferred 3515 | . 2886 333 296 Parts Sabotaged . | . . . . Parts Stolen . | . . . . Parts Stripped . | . . . . Power Chain Reactions . | . . . . Missiles Intercepted . | . . . . Alert | -11 -10 -10 -10 ------- Run | Yrd Mat Min Sub Peak Influence 278 | . 278 191 . Initial 80 | . . 80 . Average 88 | . 112 55 . Maximum Alert Level 1 | . 1 . . Low Security (%) 94 | 100 90 100 . Level 1 5 | . 9 . . Level 2 . | . . . . Level 3 . | . . . . Level 4 . | . . . . Level 5 . | . . . . High Security . | . . . . Max Security . | . . . . Squads Dispatched 7 | . 7 . . Investigation 4 | . 4 . . Extermination . | . . . . Reinforcement 3 | . 3 . . Assault . | . . . . Garrison . | . . . . Intercept . | . . . . Searches Triggered . | . . . . Construction Impeded . | . . . . Haulers Reinforced . | . . . . Active Scanning Responses . | . . . . Cargo Convoy Interrupts . | . . . . Stealth | -11 -10 -10 -10 --------- Run | Yrd Mat Min Sub Distress Signals 1 | . 1 . . Communications Jammed . | . . . . Distress Signals . | . . . . Times Spotted 56 | . 36 5 15 Peak Tracking Total 6 | . 3 3 6 Tactical Retreats 3 | . 1 1 1 Traps | -11 -10 -10 -10 ------- Run | Yrd Mat Min Sub Traps Triggered 2 | . 2 . . Indirectly . | . . . . Trap Hack Attempts . | . . . . Triggered . | . . . . Disarmed . | . . . . Reprogrammed . | . . . . Reused . | . . . . Traps Extracted . | . . . . Installed . | . . . . Triggered . | . . . . Machines | -11 -10 -10 -10 ---------- Run | Yrd Mat Min Sub Machines Disabled 2 | . 1 1 . Max in Single Turn 1 | . 1 1 . Machines Repaired . | . . . . Machines Dismantled . | . . . . Machines Sabotaged . | . . . . Overloaded Fab Kills . | . . . . Hacking | -11 -10 -10 -10 --------- Run | Yrd Mat Min Sub Machines Accessed 6 | . 5 1 . Terminals 5 | . 4 1 . Fabricators . | . . . . Repair Stations . | . . . . Recycling Units 1 | . 1 . . Scanalyzers . | . . . . Garrison Access . | . . . . Total Hacks 11 | . 9 2 . Successful 3 | . 2 1 . Failed 8 | . 7 1 . Catastrophic . | . . . . Database Lockouts . | . . . . Manual 7 | . 6 1 . Terminals 10 | . 8 2 . Fabricators . | . . . . Repair Stations . | . . . . Recycling Units 1 | . 1 . . Scanalyzers . | . . . . Garrison Access . | . . . . Terminal Hacks 1 | . . 1 . Robot Analysis 1 | . . 1 . Fabricator Hacks . | . . . . Repair Station Hacks . | . . . . Recycling Unit Hacks . | . . . . Scanalyzer . | . . . . Garrison Access Hacks . | . . . . Unauthorized Hacks 2 | . 2 . . Terminals 1 | . 1 . . Botnet 1 | . 1 . . Fabricators . | . . . . Repair Stations . | . . . . Recycling Units 1 | . 1 . . Tunnel 1 | . 1 . . Scanalyzers . | . . . . Garrison Access . | . . . . Data Cores Recovered . | . . . . Used . | . . . . Hacking Detections 4 | . 3 1 . Full Trace Events 2 | . 2 . . Feedback Events . | . . . . Feedback Blocked . | . . . . Robot Schematics Acquired . | . . . . Robots Built . | . . . . Authchips . | . . . . Time . | . . . . Total Robot Build Rating . | . . . . Part Schematics Acquired . | . . . . Parts Built . | . . . . Authchips . | . . . . Time . | . . . . Total Part Build Rating . | . . . . Parts Repaired . | . . . . Time . | . . . . Parts Recycled . | . . . . Recycled Matter . | . . . . Retrieved Matter . | . . . . Retrieved Components . | . . . . Parts Scanalyzed . | . . . . Part Schematics Acquired . | . . . . Parts Damaged . | . . . . Bothacking | -11 -10 -10 -10 ------------ Run | Yrd Mat Min Sub Used RIF Installer . | . . . . Robots Hacked . | . . . . Non-combat . | . . . . Combat . | . . . . Robot Hacks Applied . | . . . . Relay Couplers Released . | . . . . Fabnet Peak Effective % . | . . . . Robots Rewired . | . . . . Allies Hacked . | . . . . Hacks Repelled . | . . . . Allies | -11 -10 -10 -10 -------- Run | Yrd Mat Min Sub Total Allies 2 | . . 2 . Largest Group 2 | . . 2 2 Highest-Rated Group 46 | . . 46 46 Highest-Rated Ally 31 | . . 31 31 Total Orders . | . . . . Ally Attacks 4 | . . . 4 Total Damage 68 | . . . 68 Kills 1 | . . . 1 Allies Corrupted . | . . . . Allies Melted . | . . . . Intel | -11 -10 -10 -10 ------- Run | Yrd Mat Min Sub Robot Analysis Total 1 | . . 1 . Derelict Logs Recovered 2 | . . 2 . Drone Launches . | . . . . Drone Recoveries . | . . . . Exploration | -11 -10 -10 -10 ------------- Run | Yrd Mat Min Sub Turns Passed 3618 | 60 1942 1256 360 Spaces Moved 1725 | 46 899 578 202 Core 10 | 10 . . . Treads . | . . . . Legs . | . . . . Wheels 1715 | 36 899 578 202 Hover . | . . . . Flight . | . . . . Fastest Speed 50 | 50 100 195 90 Average Speed 165 | 96 161 195 115 Slowest Speed 200 | 200 195 195 195 Overloaded Moves . | . . . . Propulsion Burnouts . | . . . . Robots Hopped . | . . . . Cave-ins Triggered . | . . . . Exploration Rate (%) 52 | 5 97 96 12 Regions Visited 3 Branch Regions 2 Pre-discovered Areas 1 | . 1 . . Known Exits Taken . | . . . . Unknown Exits Taken 3 | 1 1 1 . Scrap Searched 1 | . . 1 . Spaces Dug . | . . . . Terrain Destroyed . | . . . . Melee . | . . . . Projectile . | . . . . AOE . | . . . . Terrain Rammed . | . . . . Walls Destroyed . | . . . . Machines Disabled . | . . . . Actions | -11 -10 -10 -10 --------- Run | Yrd Mat Min Sub Total 2262 | 58 1221 693 290 Wait 321 | 3 173 106 39 Move 1722 | 45 898 577 202 Hop . | . . . . Pick Up 43 | 4 32 1 6 Fast Attach 12 | 6 2 . 4 Attach 7 | . 2 . 5 Detach . | . . . . Swap 6 | . 6 . . Drop 19 | . 15 . 4 Fire 129 | . 93 8 28 Melee . | . . . . Ram . | . . . . Kick . | . . . . Crush . | . . . . Escape Stasis . | . . . . Rewire 1 | . . 1 . Trap . | . . . . Miscellaneous 2 | . . . 2 Route ------- -11/Scrapyard -10/Materials (discovered 5 exits: [*Mat x3] / *Min x2) -10/Mines (discovered 3 exits: [*Mat x2] / [*Sub]) -10/Subcaves History --------- Turn | Location | Event 29 | -11/Scrapyard | Discovered new exit (range 16) 61 | -11/Scrapyard | Entered Materials 241 | -10/Materials | Discovered new exit (range 6) 313 | -10/Materials | Build established: Mutant 831 | -10/Materials | Discovered new exit (range 9) 994 | -10/Materials | Discovered new exit (range 13) 1128 | -10/Materials | Discovered new exit (range 15) 1201 | -10/Materials | Discovered new exit (range 14) 2003 | -10/Materials | Entered Mines 2300 | -10/Mines | Learned Materials terminal intel 2311 | -10/Mines | Discovered new exit (range 15) 2573 | -10/Mines | Found a damaged Exp. Sensor Array with a note attached 2577 | -10/Mines | Found Prototype Device 2617 | -10/Mines | Discovered new exit (range 3) 2687 | -10/Mines | Learned location of 2 exits from Materials 3251 | -10/Mines | Discovered new exit (range 3) 3259 | -10/Mines | Entered Subcaves 3259 | -10/Subcaves | Accompanied by 2 allies 3264 | -10/Subcaves | Led the pair of lost Derelicts to an unsafe place 3453 | -10/Subcaves | Ambushed by swarm of Subdwellers 3481 | -10/Subcaves | Core integrity fell below 50% 3499 | -10/Subcaves | Lost 4 allies 3525 | -10/Subcaves | Lost 6 parts (1p2n1u2w) 3576 | -10/Subcaves | Core integrity fell below 20% 3611 | -10/Subcaves | Ambushed by Subdweller buried in earth 3619 | -10/Subcaves | Destroyed by 57-AWF(R) with Subdweller Laser Last Messages --------------- 03512_ Acquired 3 matter. 03514_ Acquired Sub. Power Source. 03515_ Acquired 31 matter. 03522_ Acquired Beamcaster. 03532_ Acquired Sub. Monowheel. 03536_ Acquired Sub. Power Source. 03541_ Acquired Mak. Power Source. 03555_ Acquired Sub. Monowheel. 03567_ 57-4T2(R) destroyed. 03573_ EC-DJS(g) destroyed. 03573_ Autogun destroyed. 03580_ E3-PBK(R) affixes Scrap Shield Fragment to Scrap Shield. 03580_ E3-PBK(R) suffers critical hit (Burn). 03583_ 4X-R7O(R): "ARGHSUB!" 03583_ JZ-12F(g) destroyed. 03597_ 4X-R7O(R) destroyed. 03611_ E3-PBK(R) destroyed. 03612_ 57-AWF(R): "NAT20!" 03616_ 57-AWF(R) affixes Scrap Shield Fragment to Scrap Shield. 03617_ Lgt. Treads destroyed. Map ----- +----------------------------------------------------+ | ####???## % #####????% #% #???????? | | # ##??# % %"# # # ##??????????###??##????????? | | #### %########??????????????????????????? | | ## ## #?????????????????????????????????? | | ## ### #?????????????????????????????????? | | #### ### #?????????????????????????????????? | | ??# #?????????????????????????????????? | | ??### #" ####?????????????????????????????????? | | ????##### #????????????????????????????????????? | | ?????## ##????????????????????????????????????? | | ????## #????????????????????????????????????? | | ????# ##????????????????????????????????????? | | ????# ##????????????????????????????????????? | | ???## ####?????????????????????????????????? | | ??##^ ## #?????????????????????????????????? | | ??# ##" ##????????????????????????????????? | | ??# "" #????????????????????????????????? | | ??## #????????????????????????????????? | | ???## #????????????????????????????????? | | ????# "" #????????????????????????????????? | | ????## ##" ##????#######????????????????????? | | ?????##### ##??## ##???????????????????? | | ????### # #??#;;;;; ######??????????????? | | ????# ####; ; ;##?????????????? | | ????## ^ R%%R ;#?????????????? | | ????# # # ^ @; #?????????????? | | ????####### ## %;; ##????????????? | | ??????????# ### ! #;; ;#???????????? | | ??????????###### ^ #";; ; ?????????? | | ?????????????## ## ^^# ;"?????????? | | ??????????#### ;#### ### % ;#?????????? | | ?????????## ""## *% ##?#" %= ;#?????????? | | ?????????# = "# #???# ! &#????????? | | ????????## /% !*! ##??#" #???????? | | ????????# &%!! ####"" ??????? | | ????????# ##;" % &%%&& #### ##""????? | | ????????## ### "" % ! #??# " ##???????? | | ????????# ## #;"%!] ##???"" #????????? | | ???????# # ## ### !!% ##???""" ##????????? | | ???????## ### #?#% %= #????"" #?????????? | | ????????## # ##### ##?# && #??????? ?????????? | | ?????????#####???#####??########????????#????????? | | ?????????????????????????????????????????????????? | | ?????????????????????????????????????????????????? | | ?????????????????????????????????????????????????? | | ?????????????????????????????????????????????????? | | ?????????????????????????????????????????????????? | | ?????????????????????????????????????????????????? | | ?????????????????????????????????????????????????? | | ?????????????????????????????????????????????????? | +----------------------------------------------------+ Best States ------------- Heat Dissipation 35 Energy Generation 15 Energy Capacity 250 Matter Stores 300 Matter Capacity 300 Sight Range 16 Terrain Scan Density 10 Armor Coverage 800 Evasion (%) 42 Item Schematics ----------------- None Robot Schematics ------------------ None Fabricated ------------ Nothing Alien Tech Used ----------------- None Achievements -------------- None Challenges ------------ None Game ------ Seed SchematicNetworkDetector Manual? 0 Play Time 00:17:32 Cumulative 1852.0 hours Start 2023.12.23 @ 13:11:16 End 2023.12.23 @ 13:25:04 Sessions 1 Manual Loads 0 Difficulty Rogue Special Mode None Game No. 648 Rogue 648 Adventurer 0 Explorer 0 Win Type - Total 144 Types 29/13/64/7/1/2/26/1/1 Lore% 95 Gallery% 96 Achievement% 88 Wizard Run 0 Options --------- ASCII 0 Keyboard 0 Movement Numpad Keybinds 0 Fullscreen 2 Font 18/SmallcapsGlow Map View 76x50 Zoom Use 0% Tactical HUD 1 Map Filters NONE Filters NONE Steam 1 RUN: 15b6a708-3470-4980-8296-b8d33e167862